[Event "FIDE Grand Swiss 2023"]
[Site "Villa Marina, Douglas, Isle of Man, Isle Of Man"]
[Date "2023.11.05"]
[Round "11.51"]
[White "Royal, Shreyas"]
[Black "Wagner, Dennis"]
[Result "1/2-1/2"]
[TimeControl "40/90 + 30 + 30s/move"]
[WhiteFideId "448869"]
[BlackFideId "24650684"]
[WhiteElo "2407"]
[BlackElo "2589"]

1. d4 {[%clk 01:40:55]} {[%emt 00:00:04]} Nf6 {[%clk 01:40:53]} {[%emt
00:00:08]} 2. c4 {[%clk 01:41:22]} {[%emt 00:00:03]} g6 {[%clk 01:41:14]}
{[%emt 00:00:08]} 3. Nf3 {[%clk 01:41:34]} {[%emt 00:00:18]} Bg7 {[%clk
01:41:37]} {[%emt 00:00:08]} 4. e3 {[%clk 01:41:59]} {[%emt 00:00:04]} O-O
{[%clk 01:41:51]} {[%emt 00:00:16]} 5. Be2 {[%clk 01:42:25]} {[%emt 00:00:04]}
d6 {[%clk 01:35:52]} {[%emt 00:06:30]} 6. Nc3 {[%clk 01:42:47]} {[%emt
00:00:08]} Bf5 {[%clk 01:36:15]} {[%emt 00:00:06]} 7. Nd2 {[%clk 01:42:45]}
{[%emt 00:00:32]} a5 {[%clk 01:35:54]} {[%emt 00:00:51]} 8. e4 {[%clk
01:37:32]} {[%emt 00:05:44]} Bd7 {[%clk 01:36:08]} {[%emt 00:00:15]} 9. Nf1
{[%clk 01:36:38]} {[%emt 00:01:24]} a4 {[%clk 01:14:11]} {[%emt 00:22:28]} 10.
a3 {[%clk 01:23:51]} {[%emt 00:13:17]} e5 {[%clk 01:01:56]} {[%emt 00:12:44]}
11. d5 {[%clk 01:22:29]} {[%emt 00:01:53]} Na6 {[%clk 01:02:20]} {[%emt
00:00:05]} 12. Be3 {[%clk 01:21:09]} {[%emt 00:01:50]} h5 {[%clk 01:01:51]}
{[%emt 00:00:59]} 13. h3 {[%clk 01:15:51]} {[%emt 00:05:49]} Nc5 {[%clk
01:01:00]} {[%emt 00:01:20]} 14. Nd2 {[%clk 01:16:15]} {[%emt 00:00:06]} Nh7
{[%clk 00:59:03]} {[%emt 00:02:27]} 15. Qc2 {[%clk 01:01:02]} {[%emt 00:15:43]}
Bf6 {[%clk 00:58:39]} {[%emt 00:00:54]} 16. O-O-O {[%clk 00:47:33]} {[%emt
00:14:00]} Bg5 {[%clk 00:58:01]} {[%emt 00:01:08]} 17. Bxc5 {[%clk 00:47:16]}
{[%emt 00:00:47]} dxc5 {[%clk 00:58:27]} {[%emt 00:00:03]} 18. Kb1 {[%clk
00:46:59]} {[%emt 00:00:48]} Qf6 {[%clk 00:58:06]} {[%emt 00:00:51]} 19. Nf3
{[%clk 00:44:54]} {[%emt 00:02:34]} Bh6 {[%clk 00:57:31]} {[%emt 00:01:05]} 20.
d6 {[%clk 00:41:05]} {[%emt 00:04:19]} cxd6 {[%clk 00:55:10]} {[%emt 00:02:51]}
21. Nb5 {[%clk 00:35:33]} {[%emt 00:06:03]} Qe7 {[%clk 00:34:20]} {[%emt
00:21:20]} 22. Nxd6 {[%clk 00:34:29]} {[%emt 00:01:34]} Bc6 {[%clk 00:34:45]}
{[%emt 00:00:04]} 23. Nb5 {[%clk 00:32:23]} {[%emt 00:02:36]} Ng5 {[%clk
00:31:54]} {[%emt 00:03:21]} 24. Nxg5 {[%clk 00:31:13]} {[%emt 00:01:40]} Qxg5
{[%clk 00:32:18]} {[%emt 00:00:06]} 25. g3 {[%clk 00:29:21]} {[%emt 00:02:23]}
h4 {[%clk 00:31:37]} {[%emt 00:01:10]} 26. Nc7 {[%clk 00:28:09]} {[%emt
00:01:42]} hxg3 {[%clk 00:29:16]} {[%emt 00:02:51]} 27. Nxa8 {[%clk 00:26:08]}
{[%emt 00:02:31]} Rxa8 {[%clk 00:24:07]} {[%emt 00:05:40]} 28. Rhg1 {[%clk
00:23:58]} {[%emt 00:02:40]} Qf4 {[%clk 00:17:36]} {[%emt 00:07:01]} 29. fxg3
{[%clk 00:24:21]} {[%emt 00:00:07]} Qxe4 {[%clk 00:14:02]} {[%emt 00:04:04]} 30.
Bd3 {[%clk 00:23:53]} {[%emt 00:00:57]} Qe3 {[%clk 00:13:28]} {[%emt 00:01:04]}
31. Rge1 {[%clk 00:20:48]} {[%emt 00:03:35]} Qxg3 {[%clk 00:10:36]} {[%emt
00:03:22]} 32. Rg1 {[%clk 00:20:49]} {[%emt 00:00:29]} Qh4 {[%clk 00:01:21]}
{[%emt 00:09:46]} 33. Bxg6 {[%clk 00:20:27]} {[%emt 00:00:51]} Kh8 {[%clk
00:01:29]} {[%emt 00:00:21]} 34. Bf5 {[%clk 00:20:07]} {[%emt 00:00:51]} Rg8
{[%clk 00:00:50]} {[%emt 00:01:10]} 35. Qe2 {[%clk 00:16:54]} {[%emt 00:03:42]}
e4 {[%clk 00:00:47]} {[%emt 00:00:33]} 36. Rxg8+ {[%clk 00:15:24]} {[%emt
00:02:01]} Kxg8 {[%clk 00:01:17]} 37. Rg1+ {[%clk 00:15:52]} {[%emt 00:00:02]}
Kf8 {[%clk 00:00:46]} {[%emt 00:01:00]} 38. Qe1 {[%clk 00:08:51]} {[%emt
00:07:31]} Qxe1+ {[%clk 00:00:48]} {[%emt 00:00:28]} 39. Rxe1 {[%clk 00:09:20]}
{[%emt 00:00:01]} Bd2 {[%clk 00:01:04]} {[%emt 00:00:14]} 40. Rxe4 {[%clk
00:05:33]} {[%emt 00:04:17]} Bxe4+ {[%clk 00:01:30]} {[%emt 00:00:05]} 41. Bxe4
{[%clk 00:06:00]} {[%emt 00:00:03]} b6 {[%clk 00:01:43]} {[%emt 00:00:18]} 42.
Bc2 {[%clk 00:06:24]} {[%emt 00:00:05]} Kg7 {[%clk 00:43:14]} {[%emt 00:08:58]}
43. Bxa4 {[%clk 00:55:39]} {[%emt 00:01:15]} f5 {[%clk 00:43:13]} {[%emt
00:00:31]} 44. Kc2 {[%clk 00:56:04]} {[%emt 00:00:05]} Bf4 {[%clk 00:41:07]}
{[%emt 00:02:36]} 45. Bd7 {[%clk 00:36:40]} {[%emt 00:19:54]} Kg6 {[%clk
00:41:20]} {[%emt 00:00:17]} 46. b3 {[%clk 00:35:07]} {[%emt 00:02:03]} Bg3
{[%clk 00:36:38]} {[%emt 00:05:12]} 47. Kd3 {[%clk 00:33:12]} {[%emt 00:02:25]}
Kf6 {[%clk 00:36:31]} {[%emt 00:00:38]} 48. Ke3 {[%clk 00:32:31]} {[%emt
00:01:11]} Ke5 {[%clk 00:36:55]} {[%emt 00:00:06]} 49. Kf3 {[%clk 00:31:35]}
{[%emt 00:01:26]} Be1 {[%clk 00:37:12]} {[%emt 00:00:12]} 50. Ke2 {[%clk
00:32:03]} {[%emt 00:00:03]} Bh4 {[%clk 00:37:35]} {[%emt 00:00:07]} 51. Bc8
{[%clk 00:31:44]} {[%emt 00:00:49]} Be7 {[%clk 00:37:27]} {[%emt 00:00:38]} 52.
Kf3 {[%clk 00:32:05]} {[%emt 00:00:10]} Bh4 {[%clk 00:37:52]} {[%emt 00:00:05]}
53. Bd7 {[%clk 00:32:32]} {[%emt 00:00:04]} Be1 {[%clk 00:38:16]} {[%emt
00:00:05]} 54. Bc8 {[%clk 00:32:59]} {[%emt 00:00:03]} Bh4 {[%clk 00:38:43]}
{[%emt 00:00:04]} 55. Bd7 {[%clk 00:33:26]} {[%emt 00:00:02]} 1/2-1/2

[Event "FIDE Grand Swiss 2023"]
[Site "Villa Marina, Douglas, Isle of Man, Isle Of Man"]
[Date "2023.11.05"]
[Round "11.52"]
[White "Donchenko, Alexander"]
[Black "Gupta, Abhijeet"]
[Result "1/2-1/2"]
[TimeControl "40/90 + 30 + 30s/move"]
[WhiteFideId "24603295"]
[BlackFideId "5010608"]
[WhiteElo "2676"]
[BlackElo "2609"]

1. Nf3 {[%clk 01:40:57]} {[%emt 00:00:03]} d5 {[%clk 01:40:34]} {[%emt
00:00:27]} 2. e3 {[%clk 01:41:20]} {[%emt 00:00:07]} Nf6 {[%clk 01:39:09]}
{[%emt 00:01:55]} 3. c4 {[%clk 01:41:42]} {[%emt 00:00:08]} c6 {[%clk
01:39:27]} {[%emt 00:00:11]} 4. Nc3 {[%clk 01:42:02]} {[%emt 00:00:11]} Nbd7
{[%clk 01:39:39]} {[%emt 00:00:18]} 5. Qc2 {[%clk 01:41:53]} {[%emt 00:00:39]}
e5 {[%clk 01:36:07]} {[%emt 00:04:02]} 6. cxd5 {[%clk 01:42:14]} {[%emt
00:00:10]} Nxd5 {[%clk 01:36:23]} {[%emt 00:00:14]} 7. d4 {[%clk 01:42:20]}
{[%emt 00:00:23]} Bd6 {[%clk 01:34:28]} {[%emt 00:02:25]} 8. Nxe5 {[%clk
01:22:38]} {[%emt 00:20:11]} Nb4 {[%clk 01:32:16]} {[%emt 00:02:43]} 9. Qe4
{[%clk 01:19:25]} {[%emt 00:03:43]} f5 {[%clk 01:30:11]} {[%emt 00:02:35]} 10.
Qb1 {[%clk 01:19:16]} {[%emt 00:00:39]} Nxe5 {[%clk 01:29:22]} {[%emt
00:01:19]} 11. dxe5 {[%clk 01:12:46]} {[%emt 00:07:00]} Bxe5 {[%clk 01:29:47]}
{[%emt 00:00:05]} 12. Bd2 {[%clk 01:10:10]} {[%emt 00:03:05]} Be6 {[%clk
01:26:38]} {[%emt 00:03:40]} 13. a3 {[%clk 01:07:50]} {[%emt 00:02:50]} Nd5
{[%clk 01:26:51]} {[%emt 00:00:17]} 14. Qc2 {[%clk 01:06:32]} {[%emt 00:01:48]}
Qf6 {[%clk 01:26:37]} {[%emt 00:00:44]} 15. Na4 {[%clk 00:58:12]} {[%emt
00:08:50]} O-O {[%clk 01:24:52]} {[%emt 00:02:15]} 16. f4 {[%clk 00:53:13]}
{[%emt 00:05:28]} Bd6 {[%clk 01:13:46]} {[%emt 00:11:37]} 17. Bd3 {[%clk
00:53:12]} {[%emt 00:00:30]} c5 {[%clk 01:07:27]} {[%emt 00:06:50]} 18. Nc3
{[%clk 00:45:05]} {[%emt 00:08:37]} Kh8 {[%clk 01:06:48]} {[%emt 00:01:09]} 19.
O-O {[%clk 00:42:27]} {[%emt 00:03:07]} c4 {[%clk 01:02:52]} {[%emt 00:04:26]}
20. Bxc4 {[%clk 00:40:41]} {[%emt 00:02:17]} Nxe3 {[%clk 00:59:20]} {[%emt
00:04:02]} 21. Bxe3 {[%clk 00:41:05]} {[%emt 00:00:06]} Bxc4 {[%clk 00:59:47]}
{[%emt 00:00:03]} 22. Rfe1 {[%clk 00:38:31]} {[%emt 00:03:04]} Rae8 {[%clk
00:59:49]} {[%emt 00:00:29]} 23. Qf2 {[%clk 00:35:20]} {[%emt 00:03:40]} b6
{[%clk 00:59:51]} {[%emt 00:00:29]} 24. Bd4 {[%clk 00:32:36]} {[%emt 00:03:13]}
Qh6 {[%clk 01:00:13]} {[%emt 00:00:08]} 25. Qg3 {[%clk 00:32:04]} {[%emt
00:01:02]} Kg8 {[%clk 01:00:29]} {[%emt 00:00:14]} 26. Be5 {[%clk 00:31:00]}
{[%emt 00:01:34]} Bxe5 {[%clk 00:56:56]} {[%emt 00:04:03]} 27. fxe5 {[%clk
00:29:56]} {[%emt 00:01:34]} f4 {[%clk 00:54:32]} {[%emt 00:02:54]} 28. Qf3
{[%clk 00:28:39]} {[%emt 00:01:47]} Bf7 {[%clk 00:49:26]} {[%emt 00:05:37]} 29.
Rf1 {[%clk 00:22:47]} {[%emt 00:06:21]} Bh5 {[%clk 00:46:47]} {[%emt 00:03:09]}
30. Qd5+ {[%clk 00:22:41]} {[%emt 00:00:36]} Kh8 {[%clk 00:47:05]} {[%emt
00:00:13]} 31. Rae1 {[%clk 00:22:05]} {[%emt 00:01:06]} Bg4 {[%clk 00:31:46]}
{[%emt 00:15:48]} 32. Ne4 {[%clk 00:15:41]} {[%emt 00:06:54]} Be6 {[%clk
00:13:03]} {[%emt 00:19:14]} 33. Qd4 {[%clk 00:14:43]} {[%emt 00:01:28]} f3
{[%clk 00:12:49]} {[%emt 00:00:44]} 34. Rxf3 {[%clk 00:13:10]} {[%emt
00:02:03]} Rxf3 {[%clk 00:12:30]} {[%emt 00:00:49]} 35. gxf3 {[%clk 00:13:38]}
{[%emt 00:00:02]} Qh5 {[%clk 00:11:34]} {[%emt 00:01:26]} 36. f4 {[%clk
00:11:05]} {[%emt 00:03:02]} Rf8 {[%clk 00:06:59]} {[%emt 00:05:05]} 37. Ng3
{[%clk 00:07:43]} {[%emt 00:03:52]} Qh4 {[%clk 00:06:25]} {[%emt 00:01:05]} 38.
Rd1 {[%clk 00:02:30]} {[%emt 00:05:43]} h6 {[%clk 00:04:17]} {[%emt 00:02:38]}
39. f5 {[%clk 00:00:33]} {[%emt 00:02:26]} Qxd4+ {[%clk 00:04:42]} {[%emt
00:00:06]} 40. Rxd4 {[%clk 00:01:00]} {[%emt 00:00:03]} Bxf5 {[%clk 00:05:07]}
{[%emt 00:00:05]} 41. Rf4 {[%clk 00:49:59]} {[%emt 00:01:30]} g6 {[%clk
00:55:30]} {[%emt 00:00:08]} 42. e6 {[%clk 00:50:15]} {[%emt 00:00:13]} Kg7
{[%clk 00:53:59]} {[%emt 00:02:01]} 43. e7 {[%clk 00:50:40]} {[%emt 00:00:06]}
Re8 {[%clk 00:54:23]} {[%emt 00:00:05]} 1/2-1/2

[Event "FIDE Grand Swiss 2023"]
[Site "Villa Marina, Douglas, Isle of Man, Isle Of Man"]
[Date "2023.11.05"]
[Round "11.53"]
[White "Wu, Li"]
[Black "Henriquez Villagra, Cristobal"]
[Result "0-1"]
[TimeControl "40/90 + 30 + 30s/move"]
[WhiteFideId "411086"]
[BlackFideId "3409350"]
[WhiteElo "2303"]
[BlackElo "2630"]

1. d4 {[%clk 01:40:56]} {[%emt 00:00:04]} Nf6 {[%clk 01:40:54]} {[%emt
00:00:07]} 2. c4 {[%clk 01:41:21]} {[%emt 00:00:06]} e6 {[%clk 01:41:19]}
{[%emt 00:00:04]} 3. Nf3 {[%clk 01:41:22]} {[%emt 00:00:29]} d5 {[%clk
01:41:43]} {[%emt 00:00:06]} 4. cxd5 {[%clk 01:41:28]} {[%emt 00:00:24]} exd5
{[%clk 01:42:06]} {[%emt 00:00:07]} 5. Nc3 {[%clk 01:41:34]} {[%emt 00:00:24]}
c6 {[%clk 01:36:17]} {[%emt 00:06:18]} 6. Bg5 {[%clk 01:41:13]} {[%emt
00:00:52]} Be7 {[%clk 01:32:36]} {[%emt 00:04:11]} 7. Qc2 {[%clk 01:38:39]}
{[%emt 00:03:04]} O-O {[%clk 01:19:17]} {[%emt 00:13:49]} 8. e3 {[%clk
01:38:33]} {[%emt 00:00:36]} Ne4 {[%clk 01:17:11]} {[%emt 00:02:35]} 9. Bf4
{[%clk 01:32:34]} {[%emt 00:06:29]} f5 {[%clk 01:10:58]} {[%emt 00:06:43]} 10.
h4 {[%clk 01:27:11]} {[%emt 00:05:53]} Be6 {[%clk 01:09:12]} {[%emt 00:02:16]}
11. Be2 {[%clk 01:25:05]} {[%emt 00:02:37]} Nd7 {[%clk 01:08:01]} {[%emt
00:01:41]} 12. h5 {[%clk 01:23:16]} {[%emt 00:02:19]} Rc8 {[%clk 01:05:22]}
{[%emt 00:03:08]} 13. Qb3 {[%clk 01:10:40]} {[%emt 00:13:07]} b5 {[%clk
01:03:17]} {[%emt 00:02:35]} 14. Rc1 {[%clk 01:07:43]} {[%emt 00:03:26]} a5
{[%clk 01:01:25]} {[%emt 00:02:23]} 15. a3 {[%clk 00:59:55]} {[%emt 00:08:18]}
Bf6 {[%clk 00:57:48]} {[%emt 00:04:07]} 16. Nxe4 {[%clk 00:43:53]} {[%emt
00:16:32]} fxe4 {[%clk 00:58:11]} {[%emt 00:00:06]} 17. Ne5 {[%clk 00:41:12]}
{[%emt 00:03:12]} Nxe5 {[%clk 00:55:38]} {[%emt 00:03:03]} 18. dxe5 {[%clk
00:41:36]} {[%emt 00:00:06]} Bg5 {[%clk 00:55:22]} {[%emt 00:00:45]} 19. g3
{[%clk 00:38:31]} {[%emt 00:03:36]} Be7 {[%clk 00:55:46]} {[%emt 00:00:05]} 20.
f3 {[%clk 00:32:22]} {[%emt 00:06:40]} exf3 {[%clk 00:52:55]} {[%emt 00:03:21]}
21. Bxf3 {[%clk 00:32:47]} {[%emt 00:00:05]} Qd7 {[%clk 00:53:17]} {[%emt
00:00:07]} 22. Qd3 {[%clk 00:29:14]} {[%emt 00:04:04]} c5 {[%clk 00:46:53]}
{[%emt 00:06:54]} 23. Kf2 {[%clk 00:25:11]} {[%emt 00:04:33]} c4 {[%clk
00:46:56]} {[%emt 00:00:27]} 24. Qd2 {[%clk 00:25:32]} {[%emt 00:00:08]} b4
{[%clk 00:47:05]} {[%emt 00:00:21]} 25. axb4 {[%clk 00:25:56]} {[%emt
00:00:07]} Bxb4 {[%clk 00:45:12]} {[%emt 00:02:22]} 26. Qe2 {[%clk 00:23:16]}
{[%emt 00:03:11]} Rcd8 {[%clk 00:42:06]} {[%emt 00:03:35]} 27. Rhd1 {[%clk
00:22:49]} {[%emt 00:00:57]} Qe7 {[%clk 00:40:56]} {[%emt 00:01:40]} 28. Kg2
{[%clk 00:22:49]} {[%emt 00:00:30]} Rd7 {[%clk 00:38:59]} {[%emt 00:02:26]} 29.
Rd4 {[%clk 00:21:31]} {[%emt 00:01:49]} Bc5 {[%clk 00:35:09]} {[%emt 00:04:20]}
30. Rd2 {[%clk 00:21:59]} {[%emt 00:00:03]} Rfd8 {[%clk 00:32:08]} {[%emt
00:03:30]} 31. Rcd1 {[%clk 00:22:24]} {[%emt 00:00:05]} h6 {[%clk 00:31:30]}
{[%emt 00:01:08]} 32. Kh2 {[%clk 00:21:02]} {[%emt 00:01:53]} a4 {[%clk
00:30:36]} {[%emt 00:01:23]} 33. Qg2 {[%clk 00:21:01]} {[%emt 00:00:31]} Qf7
{[%clk 00:26:41]} {[%emt 00:04:25]} 34. Ra1 {[%clk 00:17:21]} {[%emt 00:04:11]}
a3 {[%clk 00:24:26]} {[%emt 00:02:45]} 35. bxa3 {[%clk 00:17:30]} {[%emt
00:00:21]} c3 {[%clk 00:24:50]} {[%emt 00:00:05]} 36. Rd3 {[%clk 00:10:17]}
{[%emt 00:07:44]} d4 {[%clk 00:25:02]} {[%emt 00:00:18]} 37. exd4 {[%clk
00:08:18]} {[%emt 00:02:29]} Bxd4 {[%clk 00:25:27]} {[%emt 00:00:05]} 38. Be3
{[%clk 00:07:51]} {[%emt 00:00:57]} Bxe3 {[%clk 00:24:27]} {[%emt 00:01:30]} 39.
Rxe3 {[%clk 00:08:13]} {[%emt 00:00:08]} Rd2 {[%clk 00:24:54]} {[%emt
00:00:03]} 40. Re2 {[%clk 00:08:25]} {[%emt 00:00:18]} Bc4 {[%clk 00:19:47]}
{[%emt 00:05:36]} 41. e6 {[%clk 00:04:37]} {[%emt 00:04:18]} Qe7 {[%clk
00:20:07]} {[%emt 00:00:09]} 0-1

[Event "FIDE Grand Swiss 2023"]
[Site "Villa Marina, Douglas, Isle of Man, Isle Of Man"]
[Date "2023.11.05"]
[Round "11.54"]
[White "Samunenkov, Ihor"]
[Black "Sanal, Vahap"]
[Result "0-1"]
[TimeControl "40/90 + 30 + 30s/move"]
[WhiteFideId "14187086"]
[BlackFideId "6300545"]
[WhiteElo "2531"]
[BlackElo "2603"]

1. d4 {[%clk 01:40:53]} {[%emt 00:00:07]} d5 {[%clk 01:40:49]} {[%emt
00:00:11]} 2. c4 {[%clk 01:41:12]} {[%emt 00:00:11]} c6 {[%clk 01:41:15]}
{[%emt 00:00:04]} 3. cxd5 {[%clk 01:40:55]} {[%emt 00:00:47]} cxd5 {[%clk
01:41:39]} {[%emt 00:00:06]} 4. Nc3 {[%clk 01:41:19]} {[%emt 00:00:06]} Nf6
{[%clk 01:42:02]} {[%emt 00:00:07]} 5. Bf4 {[%clk 01:41:16]} {[%emt 00:00:33]}
Nc6 {[%clk 01:42:18]} {[%emt 00:00:14]} 6. e3 {[%clk 01:41:34]} {[%emt
00:00:12]} a6 {[%clk 01:41:41]} {[%emt 00:01:06]} 7. Be2 {[%clk 01:40:47]}
{[%emt 00:01:17]} Bf5 {[%clk 01:39:58]} {[%emt 00:02:13]} 8. Nf3 {[%clk
01:40:39]} {[%emt 00:00:39]} e6 {[%clk 01:40:17]} {[%emt 00:00:11]} 9. Qb3
{[%clk 01:40:52]} {[%emt 00:00:18]} Bb4 {[%clk 01:38:47]} {[%emt 00:01:59]} 10.
Ne5 {[%clk 01:29:07]} {[%emt 00:12:15]} Bxc3+ {[%clk 01:21:34]} {[%emt
00:17:44]} 11. bxc3 {[%clk 01:26:12]} {[%emt 00:03:25]} Nxe5 {[%clk 01:18:04]}
{[%emt 00:04:00]} 12. Bxe5 {[%clk 01:25:07]} {[%emt 00:01:35]} O-O {[%clk
01:17:22]} {[%emt 00:01:11]} 13. Qxb7 {[%clk 01:16:49]} {[%emt 00:08:50]} Ne4
{[%clk 01:16:57]} {[%emt 00:00:53]} 14. Qb4 {[%clk 00:59:26]} {[%emt 00:17:53]}
a5 {[%clk 01:11:10]} {[%emt 00:06:18]} 15. Qa3 {[%clk 00:55:31]} {[%emt
00:04:25]} f6 {[%clk 01:05:29]} {[%emt 00:06:11]} 16. Bf4 {[%clk 00:50:10]}
{[%emt 00:05:50]} Rc8 {[%clk 01:02:22]} {[%emt 00:03:37]} 17. Rc1 {[%clk
00:49:19]} {[%emt 00:01:22]} g5 {[%clk 01:01:46]} {[%emt 00:01:06]} 18. Bg3
{[%clk 00:49:32]} {[%emt 00:00:17]} Qb6 {[%clk 00:55:40]} {[%emt 00:06:34]} 19.
O-O {[%clk 00:40:13]} {[%emt 00:09:51]} Rf7 {[%clk 00:40:08]} {[%emt 00:16:01]}
20. Rfd1 {[%clk 00:33:05]} {[%emt 00:07:38]} Rb7 {[%clk 00:36:05]} {[%emt
00:04:33]} 21. Bf1 {[%clk 00:31:51]} {[%emt 00:01:45]} Qb2 {[%clk 00:32:24]}
{[%emt 00:04:11]} 22. Qxa5 {[%clk 00:28:42]} {[%emt 00:03:40]} Nxc3 {[%clk
00:25:14]} {[%emt 00:07:38]} 23. Kh1 {[%clk 00:21:09]} {[%emt 00:08:04]} Kg7
{[%clk 00:16:29]} {[%emt 00:09:15]} 24. Re1 {[%clk 00:19:26]} {[%emt 00:02:13]}
Bc2 {[%clk 00:09:42]} {[%emt 00:07:16]} 25. Qa6 {[%clk 00:16:06]} {[%emt
00:03:51]} Ne4 {[%clk 00:07:48]} {[%emt 00:02:23]} 26. Qxe6 {[%clk 00:14:37]}
{[%emt 00:02:00]} Nxg3+ {[%clk 00:05:47]} {[%emt 00:02:31]} 27. hxg3 {[%clk
00:14:33]} {[%emt 00:00:34]} Bf5 {[%clk 00:06:10]} {[%emt 00:00:07]} 28. Qxd5
{[%clk 00:01:59]} {[%emt 00:13:04]} Be6 {[%clk 00:06:14]} {[%emt 00:00:26]} 29.
Qe4 {[%clk 00:01:07]} {[%emt 00:01:22]} Bf5 {[%clk 00:06:19]} {[%emt 00:00:25]}
30. Qf3 {[%clk 00:01:31]} {[%emt 00:00:05]} Bg4 {[%clk 00:05:18]} {[%emt
00:01:31]} 31. Qd5 {[%clk 00:00:58]} {[%emt 00:01:05]} Rd7 {[%clk 00:02:19]}
{[%emt 00:03:28]} 32. Rb1 {[%clk 00:00:58]} {[%emt 00:00:30]} Qxf2 {[%clk
00:02:40]} {[%emt 00:00:08]} 33. Qb5 {[%clk 00:00:35]} {[%emt 00:00:55]} Rc2
{[%clk 00:02:38]} {[%emt 00:00:31]} 34. Rec1 {[%clk 00:00:33]} {[%emt
00:00:32]} Rxa2 {[%clk 00:01:42]} {[%emt 00:01:26]} 35. Qc6 {[%clk 00:00:40]}
{[%emt 00:00:24]} Qxe3 {[%clk 00:01:14]} {[%emt 00:00:57]} 36. Rb7 {[%clk
00:00:32]} {[%emt 00:00:38]} Qxd4 {[%clk 00:00:40]} {[%emt 00:01:04]} 37. Kh2
{[%clk 00:00:45]} {[%emt 00:00:17]} Ra7 {[%clk 00:00:34]} {[%emt 00:00:37]} 38.
Rb8 {[%clk 00:00:33]} {[%emt 00:00:41]} Re7 {[%clk 00:00:39]} {[%emt 00:00:25]}
39. Bc4 {[%clk 00:00:38]} {[%emt 00:00:25]} Rac7 {[%clk 00:00:34]} {[%emt
00:00:35]} 40. Qa6 {[%clk 00:00:32]} {[%emt 00:00:36]} Be6 {[%clk 00:00:34]}
{[%emt 00:00:30]} 41. Rb4 {[%clk 00:40:15]} {[%emt 00:10:48]} Qc5 {[%clk
00:36:50]} {[%emt 00:14:13]} 42. Qa3 {[%clk 00:33:20]} {[%emt 00:07:24]} Bf7
{[%clk 00:30:34]} {[%emt 00:06:46]} 43. Qb2 {[%clk 00:28:52]} {[%emt 00:04:59]}
Bxc4 {[%clk 00:20:14]} {[%emt 00:10:50]} 44. Rbxc4 {[%clk 00:29:13]} {[%emt
00:00:09]} Qxc4 {[%clk 00:20:40]} {[%emt 00:00:03]} 45. Rxc4 {[%clk 00:29:33]}
{[%emt 00:00:10]} Rxc4 {[%clk 00:21:07]} {[%emt 00:00:04]} 46. Qb3 {[%clk
00:26:33]} {[%emt 00:03:31]} Rd4 {[%clk 00:18:52]} {[%emt 00:02:39]} 47. Qa3
{[%clk 00:26:06]} {[%emt 00:01:02]} Red7 {[%clk 00:18:46]} {[%emt 00:00:32]} 48.
Qe3 {[%clk 00:24:55]} {[%emt 00:01:44]} h5 {[%clk 00:13:28]} {[%emt 00:05:49]}
49. Qe6 {[%clk 00:24:56]} {[%emt 00:00:29]} Rf7 {[%clk 00:13:26]} {[%emt
00:00:31]} 50. Qf5 {[%clk 00:22:25]} {[%emt 00:03:01]} Re7 {[%clk 00:13:37]}
{[%emt 00:00:19]} 51. Qc5 {[%clk 00:22:01]} {[%emt 00:00:55]} Rdd7 {[%clk
00:13:21]} {[%emt 00:00:46]} 52. Qc2 {[%clk 00:17:51]} {[%emt 00:04:40]} Re1
{[%clk 00:13:16]} {[%emt 00:00:34]} 53. g4 {[%clk 00:17:10]} {[%emt 00:01:12]}
h4 {[%clk 00:12:43]} {[%emt 00:01:03]} 54. Qc6 {[%clk 00:15:31]} {[%emt
00:02:09]} Rdd1 {[%clk 00:12:09]} {[%emt 00:01:01]} 55. Qb7+ {[%clk 00:15:57]}
{[%emt 00:00:07]} Kg6 {[%clk 00:12:18]} {[%emt 00:00:20]} 56. g3 {[%clk
00:16:18]} {[%emt 00:00:10]} Rd2+ {[%clk 00:09:28]} {[%emt 00:03:19]} 57. Kh3
{[%clk 00:16:41]} {[%emt 00:00:08]} Ree2 {[%clk 00:09:43]} {[%emt 00:00:14]} 58.
Qb1+ {[%clk 00:15:56]} {[%emt 00:01:15]} Rc2 {[%clk 00:10:06]} {[%emt
00:00:06]} 59. Qg1 {[%clk 00:15:44]} {[%emt 00:00:44]} Kh6 {[%clk 00:09:49]}
{[%emt 00:00:46]} 60. Qh1 {[%clk 00:15:47]} {[%emt 00:00:28]} Rf2 {[%clk
00:09:12]} {[%emt 00:01:05]} 61. Qg1 {[%clk 00:15:49]} {[%emt 00:00:30]} Rf3
{[%clk 00:09:25]} {[%emt 00:00:16]} 0-1